[Event "FIDE WCCC G10 2018"]
[Site "Santiago de Compostela"]
[Date "2018.11.04"]
[Round "1"]
[White "Field, Rowan Soraya"]
[Black "Shvedova, Alexandra"]
[Result "0-1"]
[ECO "B90"]
[WhiteElo "1206"]
[BlackElo "1782"]
[Annotator "NA"]
[PlyCount "140"]
[EventDate "2018.11.04"]
[EventType "swiss"]
[EventCountry "ESP"]
[SourceTitle "playchess.com"]
[Source "ChessBase"]
[SourceQuality "1"]
[TimeControl "40/5400+30:1800+30"]

1. e4 {[%emt 0:00:00]} c5 {[%emt 0:00:00]} 2. Nf3 {[%emt 0:00:00]} d6 {[%emt 0:00:00]} 3. d4 {[%emt 0:00:17]} cxd4 {[%emt 0:00:00]} 4. Nxd4 {[%emt 0:00:08]} Nf6 {[%emt 0:00:03]} 5. Nc3 {[%emt 0:00:12]} a6 {[%emt 0:00:06]} 6. f3 {[%emt 0:00:39]} e6 {[%emt 0:01:28]} 7. Be3 {[%emt 0:00:21]} b5 {[%emt 0:00:13]} 8. Qd2 {[%emt 0:00:24]} Nbd7 {[%emt 0:00:13]} 9. O-O-O {[%emt 0:00:45]} Bb7 {[%emt 0:00:15]} 10. g4 {[%emt 0:01:12]} Nb6 {[%emt 0:00:42]} 11. h4 {[%emt 0:01:00]} Nfd7 {[%emt 0:03:19]} 12. h5 {[%emt 0:06:56]} b4 {[%emt 0:04:47]} 13. Nb1 {[%emt 0:08:25]} d5 {[%emt 0:01:02]} 14. Bg5 {[%emt 0:04:12]} Be7 {[%emt 0:03:02]} 15. Bxe7 {[%emt 0:00:41]} Qxe7 {[%emt 0:00:06]} 16. Re1 {[%emt 0:09:58]} dxe4 {[%emt 0:04:59]} 17. fxe4 {[%emt 0:01:32]} h6 {[%emt 0:02:35]} 18. Nf3 {[%emt 0:08:47]} Rd8 {[%emt 0:09:15]} 19. Qf4 {[%emt 0:07:38]} Qf6 {[%emt 0:01:52]} 20. Qe3 {[%emt 0:03:28]} Na4 {[%emt 0:05:59]} 21. Qb3 {[%emt 0:01:55]} Ndc5 {[%emt 0:02:10]} 22. Qxb4 {[%emt 0:04:53]} Qxf3 {[%emt 0:00:16]} 23. b3 {[%emt 0:02:17]} Qf4+ {[%emt 0:01:52]} 24. Nd2 {[%emt 0:00:31]} Nb6 {[%emt 0:00:25]} 25. Bh3 {[%emt 0:02:04]} Nxe4 {[%emt 0:05:29]} 26. Rd1 {[%emt 0:02:27]} Rxd2 {[%emt 0:00:21]} 27. Rxd2 {[%emt 0:01:01]} Qxd2+ {[%emt 0:00:05]} 28. Qxd2 {[%emt 0:00:09]} Nxd2 {[%emt 0:00:03]} 29. Re1 {[%emt 0:01:58]} Nf3 {[%emt 0:00:16]} 30. Rd1 {[%emt 0:02:33]} Ke7 {[%emt 0:00:28]} 31. c4 {[%emt 0:01:16]} Ng5 {[%emt 0:00:55]} 32. Bf1 {[%emt 0:00:18]} Bf3 {[%emt 0:00:05]} 33. Re1 {[%emt 0:00:16]} Bxg4 {[%emt 0:00:36]} 34. c5 {[%emt 0:00:33]} Rc8 {[%emt 0:00:08]} 35. b4 {[%emt 0:00:12]} a5 {[%emt 0:01:21]} 36. Ba6 {[%emt 0:01:11]} Rc7 {[%emt 0:00:06]} 37. Kb2 {[%emt 0:01:10]} Nd5 {[%emt 0:00:53]} 38. b5 {[%emt 0:03:48]} Rxc5 {[%emt 0:00:07]} 39. a4 {[%emt 0:02:08]} Nb4 {[%emt 0:01:15]} 40. Re3 {[%emt 0:00:00]} Nxa6 {[%emt 0:00:00]} 41. bxa6 {[%emt 0:01:48]} Rc6 {[%emt 0:01:09]} 42. Rb3 {[%emt 0:01:30]} Rxa6 {[%emt 0:00:05]} 43. Kc2 {[%emt 0:01:28]} Bxh5 {[%emt 0:00:12]} 44. Kd2 {[%emt 0:00:09]} Ne4+ {[%emt 0:00:08]} 45. Ke3 {[%emt 0:00:20]} f5 {[%emt 0:00:10]} 46. Rb1 {[%emt 0:00:31]} Be8 {[%emt 0:00:22]} 47. Ra1 {[%emt 0:00:32]} g5 {[%emt 0:00:05]} 48. Kf3 {[%emt 0:00:20]} e5 {[%emt 0:00:17]} 49. Kg2 {[%emt 0:00:15]} g4 {[%emt 0:00:09]} 50. Kh2 {[%emt 0:00:17]} f4 {[%emt 0:00:06]} 51. Kg2 {[%emt 0:00:06]} f3+ {[%emt 0:00:07]} 52. Kg1 {[%emt 0:00:47]} g3 {[%emt 0:00:05]} 53. Kf1 {[%emt 0:00:20]} f2 {[%emt 0:00:44]} 54. Kg2 {[%emt 0:00:15]} h5 {[%emt 0:00:13]} 55. Kf1 {[%emt 0:00:43]} Nd2+ {[%emt 0:00:05]} 56. Kg2 {[%emt 0:00:20]} Bc6+ {[%emt 0:00:23]} 57. Kxg3 {[%emt 0:00:21]} f1=Q {[%emt 0:00:10]} 58. Rxf1 {[%emt 0:00:08]} Nxf1+ {[%emt 0:00:04]} 59. Kf2 {[%emt 0:00:10]} Nh2 {[%emt 0:00:18]} 60. Kg3 {[%emt 0:00:30]} Nf3 {[%emt 0:00:14]} 61. Kf2 {[%emt 0:00:21]} e4 {[%emt 0:00:31]} 62. Kf1 {[%emt 0:00:16]} e3 {[%emt 0:00:09]} 63. Ke2 {[%emt 0:01:16]} h4 {[%emt 0:00:17]} 64. Kxe3 {[%emt 0:00:34]} h3 {[%emt 0:00:06]} 65. Kf2 {[%emt 0:00:23]} h2 {[%emt 0:00:10]} 66. Kg2 {[%emt 0:00:12]} Ra8 {[%emt 0:00:04]} 67. Kh1 {[%emt 0:00:20]} Rh8 {[%emt 0:00:03]} 68. Kg2 {[%emt 0:00:09]} h1=Q+ {[%emt 0:00:07]} 69. Kf2 {[%emt 0:00:07]} Qe1+ {[%emt 0:00:10]} 70. Kg2 {[%emt 0:00:12]} Rh2# {[%emt 0:00:03]} 0-1

[Event "FIDE WCCC G10 2018"]
[Site "Santiago de Compostela"]
[Date "2018.11.04"]
[Round "1"]
[White "Stepanjan, Marianne"]
[Black "Khamdamova, Afruza"]
[Result "0-1"]
[ECO "C43"]
[WhiteElo "1200"]
[BlackElo "1691"]
[Annotator "NA"]
[PlyCount "65"]
[EventDate "2018.11.04"]
[EventType "swiss"]
[EventCountry "ESP"]
[SourceTitle "playchess.com"]
[Source "ChessBase"]
[SourceQuality "1"]
[TimeControl "40/5400+30:1800+30"]

1. e4 {[%emt 0:00:00]} e5 {[%emt 0:00:00]} 2. Nf3 {[%emt 0:00:00]} Nf6 {[%emt 0:00:00]} 3. d4 {[%emt 0:00:47]} exd4 {[%emt 0:00:00]} 4. Nxd4 {[%emt 0:00:18]} Nxe4 {[%emt 0:01:57]} 5. Qe2 {[%emt 0:08:25]} Qe7 {[%emt 0:00:06]} 6. Bf4 {[%emt 0:06:56]} d6 {[%emt 0:02:54]} 7. g3 {[%emt 0:05:14]} Nf6 {[%emt 0:02:05]} 8. Nc3 {[%emt 0:03:07]} Bd7 {[%emt 0:04:51]} 9. Bg2 {[%emt 0:02:46]} Qxe2+ {[%emt 0:00:26]} 10. Ncxe2 {[%emt 0:02:04]} Nc6 {[%emt 0:00:11]} 11. Nxc6 {[%emt 0:00:25]} Bxc6 {[%emt 0:01:00]} 12. Bxc6+ {[%emt 0:00:51]} bxc6 {[%emt 0:00:04]} 13. O-O {[%emt 0:05:23]} Nd5 {[%emt 0:01:37]} 14. Bd2 {[%emt 0:01:04]} Rb8 {[%emt 0:00:55]} 15. b3 {[%emt 0:00:27]} Be7 {[%emt 0:00:41]} 16. c4 {[%emt 0:06:27]} Nb4 {[%emt 0:04:21]} 17. a3 {[%emt 0:02:38]} Nd3 {[%emt 0:00:42]} 18. Rab1 {[%emt 0:10:12]} d5 {[%emt 0:00:44]} 19. cxd5 {[%emt 0:01:40]} cxd5 {[%emt 0:00:04]} 20. b4 {[%emt 0:00:35]} O-O {[%emt 0:00:39]} 21. Bc3 {[%emt 0:00:47]} c5 {[%emt 0:03:45]} 22. b5 {[%emt 0:14:39]} d4 {[%emt 0:05:04]} 23. Ba5 {[%emt 0:01:04]} Bf6 {[%emt 0:02:05]} 24. f4 {[%emt 0:01:50]} Rfe8 {[%emt 0:00:18]} 25. Nc1 {[%emt 0:04:22]} Nxc1 {[%emt 0:00:08]} 26. Rfxc1 {[%emt 0:00:24]} Rbc8 {[%emt 0:00:18]} 27. b6 {[%emt 0:01:12]} axb6 {[%emt 0:00:05]} 28. Bxb6 {[%emt 0:00:25]} c4 {[%emt 0:00:14]} 29. Rb4 {[%emt 0:03:50]} d3 {[%emt 0:00:09]} 30. Kf2 {[%emt 0:04:54]} d2 {[%emt 0:00:11]} 31. Rd1 {[%emt 0:00:56]} c3 {[%emt 0:00:05]} 32. Be3 {[%emt 0:11:27]} c2 {[%emt 0:00:12]} 33. Rxd2 0-1

[Event "FIDE WCCC G10 2018"]
[Site "Santiago de Compostela"]
[Date "2018.11.04"]
[Round "1"]
[White "Serban, Sara Annamaria"]
[Black "Zhou, Yafei"]
[Result "0-1"]
[ECO "A02"]
[WhiteElo "1187"]
[BlackElo "1648"]
[Annotator "NA RC"]
[PlyCount "72"]
[EventDate "2018.11.04"]
[EventType "swiss"]
[EventCountry "ESP"]
[SourceTitle "playchess.com"]
[Source "ChessBase"]
[SourceQuality "1"]
[TimeControl "40/5400+30:1800+30"]

1. f4 {[%emt 0:00:00]} Nf6 {[%emt 0:00:09]} 2. Nf3 {[%emt 0:00:08]} d5 {[%emt 0:00:10]} 3. g3 {[%emt 0:00:07]} Bf5 {[%emt 0:01:11]} 4. Bg2 {[%emt 0:00:31]} e6 {[%emt 0:00:07]} 5. O-O {[%emt 0:01:14]} Bd6 {[%emt 0:00:29]} 6. d4 {[%emt 0:01:28]} O-O {[%emt 0:00:21]} 7. Ne5 {[%emt 0:01:50]} Nbd7 {[%emt 0:01:18]} 8. c3 {[%emt 0:02:19]} c5 {[%emt 0:00:26]} 9. e3 {[%emt 0:03:13]} h6 {[%emt 0:01:27]} 10. Nd2 {[%emt 0:08:19]} Rc8 {[%emt 0:00:41]} 11. Ndf3 {[%emt 0:05:34]} Ne4 {[%emt 0:03:00]} 12. Nxd7 {[%emt 0:02:19]} Qxd7 {[%emt 0:01:45]} 13. Nd2 {[%emt 0:01:22]} Rfd8 {[%emt 0:03:32]} 14. Nxe4 {[%emt 0:04:50]} dxe4 {[%emt 0:03:40]} 15. Bd2 {[%emt 0:02:51]} Bc7 {[%emt 0:01:12]} 16. Rc1 {[%emt 0:03:19]} Bb6 {[%emt 0:00:04]} 17. Qe2 {[%emt 0:02:38]} Qd5 {[%emt 0:02:31]} 18. b3 {[%emt 0:02:05]} a6 {[%emt 0:02:32]} 19. Qc4 {[%emt 0:01:53]} Ba7 {[%emt 0:03:06]} 20. Qxd5 {[%emt 0:00:32]} exd5 {[%emt 0:01:00]} 21. a4 {[%emt 0:02:23]} Rc7 {[%emt 0:01:28]} 22. Rfe1 {[%emt 0:03:18]} Rdc8 {[%emt 0:00:30]} 23. h3 {[%emt 0:01:44]} Bd7 {[%emt 0:01:50]} 24. Bf1 {[%emt 0:01:02]} b5 {[%emt 0:02:11]} 25. axb5 {[%emt 0:00:34]} axb5 {[%emt 0:00:08]} 26. g4 {[%emt 0:00:59]} b4 {[%emt 0:00:33]} 27. cxb4 {[%emt 0:01:00]} cxd4 {[%emt 0:00:05]} 28. Rxc7 {[%emt 0:02:41]} Rxc7 {[%emt 0:00:03]} 29. exd4 {[%emt 0:02:19]} Bxd4+ {[%emt 0:00:01]} 30. Kh1 {[%emt 0:03:42]} Rc2 {[%emt 0:00:30]} 31. Be3 {[%emt 0:02:00]} Bxe3 {[%emt 0:01:35]} 32. Rxe3 {[%emt 0:00:23]} Bc6 {[%emt 0:00:21]} 33. Re2 {[%emt 0:04:13]} Rc1 {[%emt 0:01:58]} 34. Kg1 {[%emt 0:01:21]} Bb5 {[%emt 0:01:23]} 35. Rf2 {[%emt 0:01:08]} e3 {[%emt 0:00:24]} 36. Rf3 {[%emt 0:01:01]} e2 0-1

[Event "FIDE WCCC G10 2018"]
[Site "Santiago de Compostela"]
[Date "2018.11.04"]
[Round "1"]
[White "Diz Lorono, Irene"]
[Black "Rouda Essa, Alserkal"]
[Result "0-1"]
[ECO "C50"]
[WhiteElo "1158"]
[BlackElo "1635"]
[Annotator "NA RC"]
[PlyCount "32"]
[EventDate "2018.11.04"]
[EventType "swiss"]
[EventCountry "ESP"]
[SourceTitle "playchess.com"]
[Source "ChessBase"]
[SourceQuality "1"]
[TimeControl "40/5400+30:1800+30"]

1. e4 {[%emt 0:00:00]} e5 {[%emt 0:00:00]} 2. Nf3 {[%emt 0:00:00]} Nc6 {[%emt 0:00:04]} 3. Bc4 {[%emt 0:00:00]} Bc5 {[%emt 0:00:20]} 4. Nc3 {[%emt 0:01:03]} Nf6 {[%emt 0:00:32]} 5. d3 {[%emt 0:00:42]} d6 {[%emt 0:05:59]} 6. h3 {[%emt 0:00:30]} h6 {[%emt 0:00:27]} 7. a3 {[%emt 0:02:47]} a6 {[%emt 0:00:38]} 8. b4 {[%emt 0:06:00]} Ba7 {[%emt 0:00:13]} 9. O-O {[%emt 0:04:27]} g5 {[%emt 0:02:53]} 10. Nh2 {[%emt 0:06:56]} g4 {[%emt 0:11:11]} 11. hxg4 {[%emt 0:01:44]} Rg8 {[%emt 0:00:30]} 12. Bxh6 {[%emt 0:01:40]} Nxg4 {[%emt 0:00:09]} 13. Nxg4 {[%emt 0:04:40]} Bxg4 {[%emt 0:00:10]} 14. Qd2 {[%emt 0:03:11]} Bf3 {[%emt 0:00:34]} 15. g3 {[%emt 0:01:32]} Qh4 {[%emt 0:00:17]} 16. Bg5 {[%emt 0:03:26]} Qh1# {[%emt 0:00:19]} 0-1

[Event "FIDE WCCC G10 2018"]
[Site "Santiago de Compostela"]
[Date "2018.11.04"]
[Round "1"]
[White "Kulish, Glafira"]
[Black "Velea, Sophie"]
[Result "1-0"]
[ECO "B76"]
[WhiteElo "1153"]
[BlackElo "1593"]
[Annotator "NA RC"]
[PlyCount "125"]
[EventDate "2018.11.04"]
[EventType "swiss"]
[EventCountry "ESP"]
[SourceTitle "playchess.com"]
[Source "ChessBase"]
[SourceQuality "1"]
[TimeControl "40/5400+30:1800+30"]

1. e4 {[%emt 0:00:00]} c5 {[%emt 0:00:10]} 2. Nf3 {[%emt 0:00:00]} d6 {[%emt 0:00:11]} 3. d4 {[%emt 0:00:11]} cxd4 {[%emt 0:00:15]} 4. Nxd4 {[%emt 0:00:17]} Nf6 {[%emt 0:00:18]} 5. Nc3 {[%emt 0:00:23]} g6 {[%emt 0:00:33]} 6. Be3 {[%emt 0:00:23]} Bg7 {[%emt 0:00:26]} 7. f3 {[%emt 0:00:41]} O-O {[%emt 0:00:23]} 8. Qd2 {[%emt 0:00:32]} Nc6 {[%emt 0:00:16]} 9. O-O-O {[%emt 0:00:29]} d5 {[%emt 0:02:25]} 10. exd5 {[%emt 0:04:19]} Nxd5 {[%emt 0:00:41]} 11. Nxc6 {[%emt 0:00:58]} bxc6 {[%emt 0:00:02]} 12. Bd4 {[%emt 0:01:40]} Bxd4 {[%emt 0:01:16]} 13. Qxd4 {[%emt 0:01:05]} Qb6 {[%emt 0:03:24]} 14. Nxd5 {[%emt 0:11:55]} cxd5 {[%emt 0:00:40]} 15. Qxd5 {[%emt 0:09:59]} Be6 {[%emt 0:01:21]} 16. Qe4 {[%emt 0:03:27]} Rfc8 {[%emt 0:03:28]} 17. Qa4 {[%emt 0:10:44]} Bf5 {[%emt 0:02:54]} 18. Bd3 {[%emt 0:03:53]} Rab8 {[%emt 0:03:12]} 19. Qa3 {[%emt 0:04:42]} Bxd3 {[%emt 0:04:47]} 20. Rxd3 {[%emt 0:00:25]} Qc7 {[%emt 0:01:41]} 21. Rc3 {[%emt 0:05:54]} Qf4+ {[%emt 0:01:04]} 22. Kb1 {[%emt 0:00:22]} Rd8 {[%emt 0:20:41]} 23. Rd3 {[%emt 0:14:05]} Qg5 {[%emt 0:05:05]} 24. g3 {[%emt 0:03:00]} Qf6 {[%emt 0:03:22]} 25. Rxd8+ {[%emt 0:03:28]} Rxd8 {[%emt 0:00:05]} 26. Qe3 {[%emt 0:01:14]} a5 {[%emt 0:04:00]} 27. a4 {[%emt 0:03:41]} Rb8 {[%emt 0:01:51]} 28. b3 {[%emt 0:00:26]} Qc6 {[%emt 0:04:20]} 29. Qe4 {[%emt 0:01:52]} Qd7 {[%emt 0:00:56]} 30. Qe5 {[%emt 0:01:11]} Qa7 {[%emt 0:05:21]} 31. Rd1 {[%emt 0:02:32]} Rc8 {[%emt 0:00:47]} 32. Qd4 {[%emt 0:01:21]} Qc7 {[%emt 0:01:00]} 33. Rd2 {[%emt 0:02:24]} Qc6 {[%emt 0:01:18]} 34. Qd7 {[%emt 0:02:39]} Qc3 {[%emt 0:02:51]} 35. f4 {[%emt 0:01:37]} Rb8 {[%emt 0:03:01]} 36. Qd3 {[%emt 0:03:07]} Qc6 {[%emt 0:04:10]} 37. Ka2 {[%emt 0:00:43]} Rc8 {[%emt 0:04:24]} 38. Kb2 {[%emt 0:01:16]} Qc5 {[%emt 0:03:00]} 39. Qd4 {[%emt 0:00:37]} Qc7 {[%emt 0:00:37]} 40. Qd3 {[%emt 0:00:00]} Rb8 {[%emt 0:00:00]} 41. Qd7 {[%emt 0:03:35]} Qc5 {[%emt 0:03:37]} 42. Qd4 {[%emt 0:09:50]} Qc6 {[%emt 0:00:40]} 43. Qe5 {[%emt 0:00:42]} Rc8 {[%emt 0:06:51]} 44. Qxa5 {[%emt 0:01:08]} Qe4 {[%emt 0:01:19]} 45. Rd8+ {[%emt 0:00:58]} Rxd8 {[%emt 0:00:11]} 46. Qxd8+ {[%emt 0:00:06]} Kg7 {[%emt 0:00:13]} 47. Qd2 {[%emt 0:00:36]} Kg8 {[%emt 0:00:19]} 48. a5 {[%emt 0:00:15]} Qa8 {[%emt 0:00:31]} 49. Ka3 {[%emt 0:00:36]} Qa7 {[%emt 0:00:10]} 50. Ka4 {[%emt 0:00:15]} Qc5 {[%emt 0:00:16]} 51. b4 {[%emt 0:00:43]} Qc4 {[%emt 0:00:23]} 52. c3 {[%emt 0:00:32]} Qc6+ {[%emt 0:00:12]} 53. Kb3 {[%emt 0:00:12]} Qe6+ {[%emt 0:00:06]} 54. c4 {[%emt 0:00:17]} Qc6 {[%emt 0:00:11]} 55. Qd8+ {[%emt 0:01:07]} Kg7 {[%emt 0:00:08]} 56. Qd5 {[%emt 0:01:41]} Qc8 {[%emt 0:00:16]} 57. b5 {[%emt 0:00:44]} Qg4 {[%emt 0:00:10]} 58. b6 {[%emt 0:00:31]} Qe2 {[%emt 0:00:16]} 59. Qe5+ {[%emt 0:00:18]} Qxe5 {[%emt 0:00:04]} 60. fxe5 {[%emt 0:00:04]} f6 {[%emt 0:00:11]} 61. e6 {[%emt 0:00:27]} Kf8 {[%emt 0:00:07]} 62. b7 {[%emt 0:00:11]} Ke8 {[%emt 0:00:07]} 63. b8=Q# {[%emt 0:00:09]} 1-0

[Event "FIDE WCCC G10 2018"]
[Site "Santiago de Compostela"]
[Date "2018.11.04"]
[Round "1"]
[White "Ahn, Anastasia"]
[Black "Gupta, Sara"]
[Result "0-1"]
[ECO "B21"]
[WhiteElo "1148"]
[BlackElo "1561"]
[Annotator "NA RC"]
[PlyCount "124"]
[EventDate "2018.11.04"]
[EventType "swiss"]
[EventCountry "ESP"]
[SourceTitle "playchess.com"]
[Source "ChessBase"]
[SourceQuality "1"]
[TimeControl "40/5400+30:1800+30"]

1. e4 {[%emt 0:00:00]} c5 {[%emt 0:00:00]} 2. d4 {[%emt 0:00:00]} cxd4 {[%emt 0:00:47]} 3. c3 {[%emt 0:00:08]} d3 {[%emt 0:01:27]} 4. Bxd3 {[%emt 0:00:19]} Nc6 {[%emt 0:00:51]} 5. Nf3 {[%emt 0:01:14]} d6 {[%emt 0:01:02]} 6. O-O {[%emt 0:06:31]} g6 {[%emt 0:02:00]} 7. Nbd2 {[%emt 0:08:01]} Bg7 {[%emt 0:03:45]} 8. Nc4 {[%emt 0:04:17]} Nf6 {[%emt 0:07:33]} 9. h3 {[%emt 0:06:35]} O-O {[%emt 0:04:38]} 10. Re1 {[%emt 0:10:15]} b5 {[%emt 0:07:12]} 11. Na3 {[%emt 0:10:32]} b4 {[%emt 0:08:23]} 12. cxb4 {[%emt 0:09:12]} Nxb4 {[%emt 0:02:21]} 13. Bc4 {[%emt 0:05:58]} Nxe4 {[%emt 0:07:15]} 14. Rxe4 {[%emt 0:02:16]} d5 {[%emt 0:00:52]} 15. Bxd5 {[%emt 0:01:51]} Qxd5 {[%emt 0:01:35]} 16. Qxd5 {[%emt 0:05:17]} Nxd5 {[%emt 0:00:07]} 17. Ne5 {[%emt 0:04:19]} Bf5 {[%emt 0:03:10]} 18. Re2 {[%emt 0:03:18]} Rfc8 {[%emt 0:02:43]} 19. Bd2 {[%emt 0:03:28]} Rab8 {[%emt 0:01:36]} 20. b3 {[%emt 0:03:09]} Nc3 {[%emt 0:03:24]} 21. Bxc3 {[%emt 0:01:18]} Rxc3 {[%emt 0:00:38]} 22. Rae1 {[%emt 0:01:48]} Rc5 {[%emt 0:07:14]} 23. Nec4 {[%emt 0:00:58]} e6 {[%emt 0:03:08]} 24. Nd6 {[%emt 0:01:09]} Bd3 {[%emt 0:03:22]} 25. Re3 {[%emt 0:01:07]} Ba6 {[%emt 0:01:29]} 26. Nac4 {[%emt 0:01:00]} Rd8 {[%emt 0:04:41]} 27. Ne4 {[%emt 0:00:36]} Rcc8 {[%emt 0:02:23]} 28. Ncd6 {[%emt 0:01:04]} Rc2 {[%emt 0:01:41]} 29. a4 {[%emt 0:01:36]} f5 {[%emt 0:00:38]} 30. Nb5 {[%emt 0:01:57]} fxe4 {[%emt 0:00:32]} 31. Rxe4 {[%emt 0:00:26]} Bxb5 {[%emt 0:00:53]} 32. axb5 {[%emt 0:00:11]} Bc3 {[%emt 0:00:37]} 33. R1e2 {[%emt 0:00:27]} Rxe2 {[%emt 0:00:11]} 34. Rxe2 {[%emt 0:00:06]} e5 {[%emt 0:00:31]} 35. Rc2 {[%emt 0:00:12]} Rd3 {[%emt 0:00:44]} 36. Ra2 {[%emt 0:00:14]} Bd4 {[%emt 0:00:19]} 37. Rc2 {[%emt 0:00:42]} Rc3 {[%emt 0:00:19]} 38. Rxc3 {[%emt 0:00:55]} Bxc3 {[%emt 0:00:02]} 39. Kf1 {[%emt 0:00:17]} Kf7 {[%emt 0:00:07]} 40. Ke2 {[%emt 0:00:00]} Ke6 {[%emt 0:00:00]} 41. Kd3 {[%emt 0:00:26]} Bd4 {[%emt 0:00:16]} 42. f3 {[%emt 0:00:56]} Kd5 {[%emt 0:00:13]} 43. g3 {[%emt 0:01:58]} Kc5 {[%emt 0:01:00]} 44. f4 {[%emt 0:00:18]} Kxb5 {[%emt 0:00:34]} 45. Ke4 {[%emt 0:00:51]} Kb4 {[%emt 0:00:14]} 46. fxe5 {[%emt 0:00:09]} Bxe5 {[%emt 0:00:11]} 47. Kxe5 {[%emt 0:00:11]} Kxb3 {[%emt 0:00:03]} 48. g4 {[%emt 0:00:27]} a5 {[%emt 0:00:03]} 49. h4 {[%emt 0:00:06]} a4 {[%emt 0:00:02]} 50. h5 {[%emt 0:00:29]} gxh5 {[%emt 0:00:24]} 51. gxh5 {[%emt 0:00:11]} a3 {[%emt 0:00:02]} 52. Kf6 {[%emt 0:00:12]} a2 {[%emt 0:00:05]} 53. Kg7 {[%emt 0:00:15]} a1=Q+ {[%emt 0:00:04]} 54. Kxh7 {[%emt 0:00:13]} Qf6 {[%emt 0:00:16]} 55. h6 {[%emt 0:00:14]} Kc4 {[%emt 0:00:05]} 56. Kg8 {[%emt 0:00:26]} Qxh6 {[%emt 0:00:03]} 57. Kf7 {[%emt 0:00:20]} Kd5 {[%emt 0:00:25]} 58. Ke7 {[%emt 0:00:10]} Qe6+ {[%emt 0:00:08]} 59. Kf8 {[%emt 0:00:13]} Qd7 {[%emt 0:00:27]} 60. Kg8 {[%emt 0:00:09]} Ke5 {[%emt 0:00:03]} 61. Kf8 {[%emt 0:00:16]} Kf6 {[%emt 0:00:06]} 62. Kg8 {[%emt 0:00:12]} Qg7# {[%emt 0:00:08]} 0-1